[Event "Live Chess"]
[Site "Chess.com"]
[Date "2023.05.21"]
[Round "-"]
[White "MartynColebrook"]
[Black "1600x"]
[Result "0-1"]
[WhiteElo "965"]
[BlackElo "1873"]
[TimeControl "300"]
[EndTime "5:38:03 PDT"]
[Termination "1600x won by checkmate"]

1. e4 {[%clk 0:04:57.2]} 1... Nc6 {[%clk 0:04:55.5]} 2. Nf3 {[%clk 0:04:55.3]}
2... e5 {[%clk 0:04:53.7]} 3. d4 {[%clk 0:04:53.7]} 3... exd4 {[%clk 0:04:52.2]}
4. Nxd4 {[%clk 0:04:52.2]} 4... d5 {[%clk 0:04:49.8]} 5. exd5 {[%clk 0:04:46.8]}
5... Qxd5 {[%clk 0:04:47]} 6. Be3 {[%clk 0:04:38.6]} 6... Nxd4 {[%clk
0:04:45.3]} 7. Qxd4 {[%clk 0:04:36]} 7... Ne7 {[%clk 0:04:43.3]} 8. Nc3 {[%clk
0:04:31.3]} 8... Qxd4 {[%clk 0:04:40.2]} 9. Bxd4 {[%clk 0:04:29.8]} 9... c6
{[%clk 0:04:38.6]} 10. Bc4 {[%clk 0:04:27.3]} 10... Bg4 {[%clk 0:04:36]} 11. f3
{[%clk 0:04:23.2]} 11... Be6 {[%clk 0:04:34.4]} 12. Bxe6 {[%clk 0:04:21.2]}
12... fxe6 {[%clk 0:04:33.2]} 13. O-O-O {[%clk 0:04:20]} 13... h5 {[%clk
0:04:31.6]} 14. Rde1 {[%clk 0:04:17.8]} 14... Rh6 {[%clk 0:04:30.1]} 15. g4
{[%clk 0:04:15]} 15... hxg4 {[%clk 0:04:27.6]} 16. fxg4 {[%clk 0:04:13.6]} 16...
O-O-O {[%clk 0:04:25.4]} 17. h4 {[%clk 0:04:11.2]} 17... Rxd4 {[%clk 0:04:23.1]}
18. Ne4 {[%clk 0:04:06.5]} 18... Nd5 {[%clk 0:04:21.3]} 19. g5 {[%clk
0:04:00.4]} 19... Rh8 {[%clk 0:04:19.1]} 20. Nd6+ {[%clk 0:03:53.8]} 20... Bxd6
{[%clk 0:04:17.2]} 21. Rxe6 {[%clk 0:03:51.7]} 21... Bf4+ {[%clk 0:04:15]} 22.
Kb1 {[%clk 0:03:49.3]} 22... Rxh4 {[%clk 0:04:12.2]} 23. Rxh4 {[%clk 0:03:47.4]}
23... Rd1# {[%clk 0:04:09.8]} 0-1

[Event "Live Chess"]
[Site "Chess.com"]
[Date "2023.05.21"]
[Round "-"]
[White "jumush"]
[Black "romchyk1219"]
[Result "1-0"]
[WhiteElo "1741"]
[BlackElo "646"]
[TimeControl "300"]
[EndTime "5:38:19 PDT"]
[Termination "jumush won by resignation"]

1. e4 {[%clk 0:04:58.6]} 1... d6 {[%clk 0:04:58.3]} 2. d4 {[%clk 0:04:55.6]}
2... Nf6 {[%clk 0:04:57.4]} 3. Nc3 {[%clk 0:04:53.6]} 3... g6 {[%clk 0:04:56.9]}
4. Be3 {[%clk 0:04:51.4]} 4... Bg7 {[%clk 0:04:55.9]} 5. Qd2 {[%clk 0:04:50.1]}
5... O-O {[%clk 0:04:55.1]} 6. Bh6 {[%clk 0:04:48.6]} 6... Bxh6 {[%clk
0:04:52.8]} 7. Qxh6 {[%clk 0:04:46.3]} 7... Nc6 {[%clk 0:04:51.8]} 8. O-O-O
{[%clk 0:04:42.1]} 8... b6 {[%clk 0:04:41.9]} 9. h4 {[%clk 0:04:40.1]} 9... Bb7
{[%clk 0:04:39.3]} 10. Be2 {[%clk 0:04:37.8]} 10... Nb4 {[%clk 0:04:33.9]} 11.
h5 {[%clk 0:04:29.8]} 11... gxh5 {[%clk 0:04:21.7]} 12. Bxh5 {[%clk 0:04:21.5]}
12... Nxa2+ {[%clk 0:04:15.9]} 13. Nxa2 {[%clk 0:04:19.2]} 13... Bxe4 {[%clk
0:04:14.4]} 14. Bf3 {[%clk 0:04:13.2]} 14... Bg6 {[%clk 0:04:12.5]} 15. Ne2
{[%clk 0:04:07.7]} 15... Qd7 {[%clk 0:04:06.3]} 16. Nf4 {[%clk 0:04:05]} 16...
Bf5 {[%clk 0:04:01.9]} 17. Bxa8 {[%clk 0:04:00.9]} 17... Qa4 {[%clk 0:03:53.2]}
18. Qg5+ {[%clk 0:03:50.9]} 18... Bg6 {[%clk 0:03:44.5]} 19. Nxg6 {[%clk
0:03:48.7]} 19... hxg6 {[%clk 0:03:42.6]} 20. Kb1 {[%clk 0:03:35.7]} 20... Qxd4
{[%clk 0:03:39.9]} 21. Rxd4 {[%clk 0:03:32.7]} 21... c5 {[%clk 0:03:37.8]} 22.
Rdh4 {[%clk 0:03:30.9]} 22... Nh7 {[%clk 0:03:28.6]} 23. Rxh7 {[%clk 0:03:25.6]}
1-0

[Event "Live Chess"]
[Site "Chess.com"]
[Date "2023.05.21"]
[Round "-"]
[White "wot-not"]
[Black "CrypticF1"]
[Result "1-0"]
[WhiteElo "1536"]
[BlackElo "446"]
[TimeControl "300"]
[EndTime "5:38:22 PDT"]
[Termination "wot-not won by checkmate"]

1. e4 {[%clk 0:04:54]} 1... c5 {[%clk 0:04:54]} 2. Bc4 {[%clk 0:04:51.8]} 2...
d6 {[%clk 0:04:52.9]} 3. Qh5 {[%clk 0:04:39.2]} 3... g6 {[%clk 0:04:37.2]} 4.
Qf3 {[%clk 0:04:35.6]} 4... f6 {[%clk 0:04:24.1]} 5. d4 {[%clk 0:04:21]} 5...
cxd4 {[%clk 0:04:21.2]} 6. Ne2 {[%clk 0:04:13.2]} 6... f5 {[%clk 0:04:17.7]} 7.
exf5 {[%clk 0:04:06.5]} 7... gxf5 {[%clk 0:04:16.3]} 8. Qh5+ {[%clk 0:03:29.6]}
8... Kd7 {[%clk 0:04:09.4]} 9. Nxd4 {[%clk 0:03:17.7]} 9... Nc6 {[%clk
0:04:04.1]} 10. Ne6 {[%clk 0:03:03.7]} 10... Nf6 {[%clk 0:03:59.2]} 11. Qxf5
{[%clk 0:02:58.8]} 11... Nd4 {[%clk 0:03:53.2]} 12. Nxd8+ {[%clk 0:02:50.4]}
12... Kxd8 {[%clk 0:03:48.9]} 13. Qa5+ {[%clk 0:02:42.6]} 13... Kd7 {[%clk
0:03:44.7]} 14. O-O {[%clk 0:02:38.6]} 14... Nxc2 {[%clk 0:03:40.9]} 15. Bb5+
{[%clk 0:02:31.3]} 15... Ke6 {[%clk 0:03:37.5]} 16. Nc3 {[%clk 0:02:22.8]} 16...
Nxa1 {[%clk 0:03:36.4]} 17. Re1+ {[%clk 0:02:22.1]} 17... Kf7 {[%clk 0:03:33.8]}
18. Bc4+ {[%clk 0:02:11.3]} 18... Ke8 {[%clk 0:03:28.9]} 19. Qa4+ {[%clk
0:02:10.5]} 19... Bd7 {[%clk 0:03:27.1]} 20. Bb5 {[%clk 0:02:04.4]} 20... Bxb5
{[%clk 0:03:24.1]} 21. Qxb5+ {[%clk 0:02:03.7]} 21... Kf7 {[%clk 0:03:22]} 22.
Qxb7 {[%clk 0:02:01.4]} 22... Bg7 {[%clk 0:03:17.7]} 23. Rxe7+ {[%clk
0:01:55.5]} 23... Kg6 {[%clk 0:03:13.9]} 24. Rxg7+ {[%clk 0:01:53.9]} 24... Kf5
{[%clk 0:03:09.7]} 25. Qf3+ {[%clk 0:01:50]} 25... Ke6 {[%clk 0:03:07.3]} 26.
Qe2+ {[%clk 0:01:37.5]} 26... Kf5 {[%clk 0:03:05.8]} 27. g4+ {[%clk 0:01:32.1]}
27... Nxg4 {[%clk 0:03:01.3]} 28. Qxg4+ {[%clk 0:01:29.9]} 28... Kf6 {[%clk
0:02:58.8]} 29. Qg5+ {[%clk 0:01:24.9]} 29... Ke6 {[%clk 0:02:57.1]} 30. Be3
{[%clk 0:01:14.1]} 30... Nc2 {[%clk 0:02:50.3]} 31. Qe7+ {[%clk 0:01:11.7]}
31... Kf5 {[%clk 0:02:47.6]} 32. Qe4+ {[%clk 0:01:07.8]} 32... Kf6 {[%clk
0:02:46.1]} 33. Bd4+ {[%clk 0:00:59.7]} 33... Nxd4 {[%clk 0:02:41.2]} 34. Qxd4+
{[%clk 0:00:58.8]} 34... Ke6 {[%clk 0:02:39.1]} 35. Qd5+ {[%clk 0:00:57.2]}
35... Kf6 {[%clk 0:02:37.7]} 36. Qf7+ {[%clk 0:00:51.7]} 36... Ke5 {[%clk
0:02:36.2]} 37. f4+ {[%clk 0:00:50.1]} 37... Kd4 {[%clk 0:02:35]} 38. Qd5+
{[%clk 0:00:46.8]} 38... Ke3 {[%clk 0:02:33.6]} 39. Re7+ {[%clk 0:00:44.7]}
39... Kxf4 {[%clk 0:02:32.7]} 40. Qe4+ {[%clk 0:00:40.9]} 40... Kg5 {[%clk
0:02:31.6]} 41. h4+ {[%clk 0:00:34]} 41... Kf6 {[%clk 0:02:28.7]} 42. Nd5#
{[%clk 0:00:32.9]} 1-0

[Event "Live Chess"]
[Site "Chess.com"]
[Date "2023.05.21"]
[Round "-"]
[White "Tiltador"]
[Black "Tushinskiy"]
[Result "0-1"]
[WhiteElo "804"]
[BlackElo "2220"]
[TimeControl "300"]
[EndTime "5:38:24 PDT"]
[Termination "Tushinskiy won by checkmate"]

1. e4 {[%clk 0:04:54.8]} 1... e5 {[%clk 0:04:58]} 2. Nf3 {[%clk 0:04:53.6]} 2...
d6 {[%clk 0:04:57.9]} 3. d3 {[%clk 0:04:51.4]} 3... Bg4 {[%clk 0:04:56.7]} 4.
Be2 {[%clk 0:04:49.2]} 4... Nf6 {[%clk 0:04:55.1]} 5. O-O {[%clk 0:04:47.8]}
5... Be7 {[%clk 0:04:53.4]} 6. h3 {[%clk 0:04:46.8]} 6... Bh5 {[%clk 0:04:50.6]}
7. Nfd2 {[%clk 0:04:42.1]} 7... Bg6 {[%clk 0:04:48.5]} 8. Nc3 {[%clk 0:04:34.6]}
8... Nbd7 {[%clk 0:04:47.1]} 9. Nd5 {[%clk 0:04:33.3]} 9... Nxd5 {[%clk
0:04:44.6]} 10. exd5 {[%clk 0:04:31.5]} 10... O-O {[%clk 0:04:43.7]} 11. Bf3
{[%clk 0:04:29]} 11... f5 {[%clk 0:04:42.3]} 12. Nc4 {[%clk 0:04:20.9]} 12...
Nf6 {[%clk 0:04:39.6]} 13. b3 {[%clk 0:04:18.1]} 13... Qd7 {[%clk 0:04:38.7]}
14. Bb2 {[%clk 0:04:13.1]} 14... Rae8 {[%clk 0:04:37.8]} 15. d4 {[%clk
0:04:07.8]} 15... e4 {[%clk 0:04:34.8]} 16. Be2 {[%clk 0:04:05]} 16... Nxd5
{[%clk 0:04:32.9]} 17. Bh5 {[%clk 0:03:47.2]} 17... Bf6 {[%clk 0:04:23.8]} 18.
Bxg6 {[%clk 0:03:43.9]} 18... hxg6 {[%clk 0:04:23.6]} 19. Qe2 {[%clk 0:03:31.6]}
19... Re7 {[%clk 0:04:16]} 20. c3 {[%clk 0:03:28.2]} 20... Rfe8 {[%clk
0:04:09.2]} 21. Rae1 {[%clk 0:03:21.6]} 21... Nf4 {[%clk 0:04:08]} 22. Qd2
{[%clk 0:03:12.3]} 22... Nd3 {[%clk 0:04:04.4]} 23. Rd1 {[%clk 0:03:06.3]} 23...
b5 {[%clk 0:04:02.3]} 24. Ne3 {[%clk 0:03:00.6]} 24... d5 {[%clk 0:03:48.7]} 25.
c4 {[%clk 0:02:55.3]} 25... bxc4 {[%clk 0:03:44.8]} 26. bxc4 {[%clk 0:02:53.2]}
26... c6 {[%clk 0:03:44.7]} 27. cxd5 {[%clk 0:02:49.6]} 27... cxd5 {[%clk
0:03:44.6]} 28. a3 {[%clk 0:02:30.8]} 28... Kh7 {[%clk 0:03:27.1]} 29. Nc2
{[%clk 0:02:21.2]} 29... Nxb2 {[%clk 0:02:51.5]} 30. Rb1 {[%clk 0:01:59.7]}
30... Nc4 {[%clk 0:02:41.7]} 31. Qb4 {[%clk 0:01:47.4]} 31... f4 {[%clk
0:02:20.2]} 32. Qc5 {[%clk 0:01:41.1]} 32... f3 {[%clk 0:02:13.9]} 33. Ne3
{[%clk 0:01:25.2]} 33... fxg2 {[%clk 0:02:08.1]} 34. Kxg2 {[%clk 0:01:17.4]}
34... Nd2 {[%clk 0:01:39.8]} 35. Nxd5 {[%clk 0:00:58.1]} 35... Nxb1 {[%clk
0:01:32.7]} 36. Nxf6+ {[%clk 0:00:51]} 36... gxf6 {[%clk 0:01:24.1]} 37. Rxb1
{[%clk 0:00:46.4]} 37... e3 {[%clk 0:01:22.9]} 38. fxe3 {[%clk 0:00:42]} 38...
Rxe3 {[%clk 0:01:22.8]} 39. Rf1 {[%clk 0:00:30.4]} 39... Qxh3+ {[%clk
0:01:00.8]} 40. Kg1 {[%clk 0:00:23.6]} 40... Rg3+ {[%clk 0:00:41.7]} 41. Kf2
{[%clk 0:00:18.9]} 41... Rg2# {[%clk 0:00:34.5]} 0-1

[Event "Live Chess"]
[Site "Chess.com"]
[Date "2023.05.21"]
[Round "-"]
[White "CheckThis4"]
[Black "TheSmoulderingMaster"]
[Result "1-0"]
[WhiteElo "2515"]
[BlackElo "1637"]
[TimeControl "300"]
[EndTime "5:38:25 PDT"]
[Termination "CheckThis4 won by resignation"]

1. d4 {[%clk 0:04:57]} 1... Nf6 {[%clk 0:04:57.4]} 2. Nc3 {[%clk 0:04:56.1]}
2... d6 {[%clk 0:04:56.9]} 3. e4 {[%clk 0:04:55.3]} 3... g6 {[%clk 0:04:56.4]}
4. Be3 {[%clk 0:04:51.9]} 4... Bg7 {[%clk 0:04:55.6]} 5. Qd2 {[%clk 0:04:51.5]}
5... O-O {[%clk 0:04:54.8]} 6. Bh6 {[%clk 0:04:50.4]} 6... c5 {[%clk 0:04:50.6]}
7. Nge2 {[%clk 0:04:46.4]} 7... cxd4 {[%clk 0:04:48.1]} 8. Nxd4 {[%clk
0:04:45.3]} 8... Nc6 {[%clk 0:04:46.2]} 9. Nxc6 {[%clk 0:04:43.7]} 9... bxc6
{[%clk 0:04:45.3]} 10. h4 {[%clk 0:04:43.3]} 10... Qb6 {[%clk 0:04:33.2]} 11.
Bxg7 {[%clk 0:04:30.2]} 11... Kxg7 {[%clk 0:04:31.4]} 12. h5 {[%clk 0:04:29.7]}
12... Qb3 {[%clk 0:04:22.2]} 13. axb3 {[%clk 0:04:27.8]} 1-0

[Event "Live Chess"]
[Site "Chess.com"]
[Date "2023.05.21"]
[Round "-"]
[White "Berdgross"]
[Black "JanMur7"]
[Result "0-1"]
[WhiteElo "682"]
[BlackElo "1952"]
[TimeControl "300"]
[EndTime "5:38:27 PDT"]
[Termination "JanMur7 won by resignation"]

1. d4 {[%clk 0:04:55.7]} 1... Nf6 {[%clk 0:04:58.2]} 2. e4 {[%clk 0:04:55.1]}
2... Nxe4 {[%clk 0:04:57]} 3. Nc3 {[%clk 0:04:51.6]} 3... Nxc3 {[%clk
0:04:56.1]} 4. bxc3 {[%clk 0:04:49.9]} 4... d5 {[%clk 0:04:56]} 5. Nf3 {[%clk
0:04:47.7]} 5... c5 {[%clk 0:04:51.8]} 6. dxc5 {[%clk 0:04:14.1]} 6... Nc6
{[%clk 0:04:41.6]} 7. Bb5 {[%clk 0:04:11.5]} 7... Bg4 {[%clk 0:04:30.6]} 8. h3
{[%clk 0:04:08.8]} 8... Bxf3 {[%clk 0:04:20.6]} 9. Qxf3 {[%clk 0:04:05.5]} 9...
e6 {[%clk 0:04:15.2]} 10. Bxc6+ {[%clk 0:04:03.6]} 10... bxc6 {[%clk 0:04:09]}
11. O-O {[%clk 0:03:51.9]} 11... Bxc5 {[%clk 0:04:00.4]} 12. Bb2 {[%clk
0:03:46.9]} 12... O-O {[%clk 0:03:43.2]} 13. Rfd1 {[%clk 0:03:38.4]} 13... Be7
{[%clk 0:03:31.7]} 14. c4 {[%clk 0:03:36.2]} 14... Bf6 {[%clk 0:03:18.4]} 15.
Bxf6 {[%clk 0:03:28.5]} 15... Qxf6 {[%clk 0:03:18.2]} 16. Qxf6 {[%clk
0:03:25.3]} 16... gxf6 {[%clk 0:03:18]} 17. cxd5 {[%clk 0:03:24.3]} 17... cxd5
{[%clk 0:03:17.8]} 18. Rab1 {[%clk 0:03:19.1]} 18... Rab8 {[%clk 0:03:16.6]} 19.
Rxb8 {[%clk 0:03:16.9]} 19... Rxb8 {[%clk 0:03:16.5]} 20. c3 {[%clk 0:03:12.5]}
20... Rb2 {[%clk 0:03:03.3]} 21. a4 {[%clk 0:03:07.7]} 21... Ra2 {[%clk
0:02:56.8]} 22. Rb1 {[%clk 0:02:59]} 22... Rxa4 {[%clk 0:02:55.1]} 23. Rb8+
{[%clk 0:02:54.5]} 23... Kg7 {[%clk 0:02:53.8]} 24. f4 {[%clk 0:02:50.1]} 24...
Rxf4 {[%clk 0:02:51.6]} 25. Rb7 {[%clk 0:02:47.1]} 25... Rc4 {[%clk 0:02:49.6]}
26. Rxa7 {[%clk 0:02:45.4]} 26... Rxc3 {[%clk 0:02:48.4]} 0-1

[Event "Live Chess"]
[Site "Chess.com"]
[Date "2023.05.21"]
[Round "-"]
[White "viktorskliarov"]
[Black "LiamClery2020"]
[Result "1-0"]
[WhiteElo "2649"]
[BlackElo "1990"]
[TimeControl "300"]
[EndTime "5:38:30 PDT"]
[Termination "viktorskliarov won by resignation"]

1. e4 {[%clk 0:04:57.7]} 1... Nf6 {[%clk 0:04:59]} 2. Nc3 {[%clk 0:04:55.2]}
2... e5 {[%clk 0:04:58.2]} 3. Bc4 {[%clk 0:04:53.9]} 3... Nc6 {[%clk 0:04:57.2]}
4. d3 {[%clk 0:04:53]} 4... Bb4 {[%clk 0:04:56.3]} 5. Bg5 {[%clk 0:04:47.3]}
5... O-O {[%clk 0:04:52.4]} 6. Ne2 {[%clk 0:04:41.7]} 6... d6 {[%clk 0:04:51.4]}
7. O-O {[%clk 0:04:40]} 7... h6 {[%clk 0:04:50.5]} 8. Bxf6 {[%clk 0:04:34.6]}
8... Qxf6 {[%clk 0:04:50.4]} 9. Nd5 {[%clk 0:04:34]} 9... Qd8 {[%clk 0:04:49.7]}
10. Nxb4 {[%clk 0:04:31]} 10... Nxb4 {[%clk 0:04:49.6]} 11. c3 {[%clk
0:04:30.6]} 11... Nc6 {[%clk 0:04:48.1]} 12. f4 {[%clk 0:04:30.2]} 12... Be6
{[%clk 0:04:47]} 13. Bb5 {[%clk 0:04:27.7]} 13... Bd7 {[%clk 0:04:41.9]} 14. Ng3
{[%clk 0:04:09.5]} 14... exf4 {[%clk 0:04:35.6]} 15. Rxf4 {[%clk 0:04:00]} 15...
Qg5 {[%clk 0:04:31.4]} 16. Bxc6 {[%clk 0:03:58.6]} 16... Bxc6 {[%clk 0:04:28.7]}
17. Rg4 {[%clk 0:03:51.1]} 17... Qc5+ {[%clk 0:04:27.9]} 18. d4 {[%clk
0:03:43.7]} 18... Qa5 {[%clk 0:04:22.2]} 19. Nf5 {[%clk 0:03:38.5]} 19... Bxe4
{[%clk 0:04:18.2]} 20. Rxg7+ {[%clk 0:03:25.9]} 20... Kh8 {[%clk 0:04:17.5]} 21.
Qh5 {[%clk 0:03:25]} 21... Qxf5 {[%clk 0:04:12.6]} 22. Qxh6+ {[%clk 0:03:23.9]}
22... Qh7 {[%clk 0:04:12.5]} 23. Rxh7+ {[%clk 0:03:22.9]} 23... Bxh7 {[%clk
0:04:12.4]} 24. Qf6+ {[%clk 0:03:13.8]} 24... Kg8 {[%clk 0:04:11.5]} 25. Re1
{[%clk 0:03:11.3]} 25... Rae8 {[%clk 0:04:10.5]} 26. Rxe8 {[%clk 0:03:09.3]}
26... Rxe8 {[%clk 0:04:09.7]} 27. Kf2 {[%clk 0:03:08.5]} 27... Re6 {[%clk
0:04:08.3]} 28. Qd8+ {[%clk 0:03:07.3]} 1-0

[Event "Live Chess"]
[Site "Chess.com"]
[Date "2023.05.21"]
[Round "-"]
[White "KeithArkell"]
[Black "Chesscoach_Golichenko"]
[Result "0-1"]
[WhiteElo "2474"]
[BlackElo "2618"]
[TimeControl "300"]
[EndTime "5:38:43 PDT"]
[Termination "Chesscoach_Golichenko won by resignation"]

1. d4 {[%clk 0:04:58.2]} 1... Nf6 {[%clk 0:04:57.6]} 2. Nf3 {[%clk 0:04:57.4]}
2... c5 {[%clk 0:04:53.9]} 3. d5 {[%clk 0:04:56.2]} 3... d6 {[%clk 0:04:50.1]}
4. Nc3 {[%clk 0:04:54.4]} 4... g6 {[%clk 0:04:48.9]} 5. e4 {[%clk 0:04:53.6]}
5... Bg7 {[%clk 0:04:48.5]} 6. Bb5+ {[%clk 0:04:53.1]} 6... Nbd7 {[%clk
0:04:46.6]} 7. a4 {[%clk 0:04:51.5]} 7... O-O {[%clk 0:04:45]} 8. h3 {[%clk
0:04:50.8]} 8... a6 {[%clk 0:04:44.3]} 9. Bd3 {[%clk 0:04:44.6]} 9... Rb8 {[%clk
0:04:43.5]} 10. a5 {[%clk 0:04:40.2]} 10... b5 {[%clk 0:04:42.2]} 11. axb6
{[%clk 0:04:39.4]} 11... Nxb6 {[%clk 0:04:37.8]} 12. Nd2 {[%clk 0:04:38.3]}
12... e6 {[%clk 0:04:31.2]} 13. dxe6 {[%clk 0:04:36.2]} 13... Bxe6 {[%clk
0:04:28.8]} 14. Rxa6 {[%clk 0:04:33.6]} 14... d5 {[%clk 0:04:23.4]} 15. exd5
{[%clk 0:04:30.9]} 15... Nfxd5 {[%clk 0:04:22.4]} 16. Nxd5 {[%clk 0:04:28.2]}
16... Bxd5 {[%clk 0:04:14.2]} 17. O-O {[%clk 0:04:25.9]} 17... c4 {[%clk
0:04:07.7]} 18. Be4 {[%clk 0:04:18.5]} 18... c3 {[%clk 0:03:47]} 19. bxc3 {[%clk
0:04:14]} 19... Re8 {[%clk 0:03:44]} 20. Bxd5 {[%clk 0:04:12.8]} 20... Nxd5
{[%clk 0:03:42.3]} 21. Nf3 {[%clk 0:04:08.7]} 21... Qc8 {[%clk 0:03:36]} 22. Ra7
{[%clk 0:04:00.9]} 22... Nxc3 {[%clk 0:03:34]} 23. Qd7 {[%clk 0:03:59]} 23...
Qxd7 {[%clk 0:03:26.4]} 24. Rxd7 {[%clk 0:03:57.3]} 24... Rb1 {[%clk 0:03:25]}
25. Rd2 {[%clk 0:02:22.7]} 25... Ne2+ {[%clk 0:02:31.2]} 26. Kh2 {[%clk
0:02:12.7]} 26... Bh6 {[%clk 0:02:19.4]} 27. Rdd1 {[%clk 0:01:57.5]} 27... Rxc1
{[%clk 0:02:01.3]} 28. Rxc1 {[%clk 0:01:51.8]} 28... Nxc1 {[%clk 0:01:55]} 29.
g3 {[%clk 0:01:36.3]} 29... Re2 {[%clk 0:01:43]} 30. Kg2 {[%clk 0:01:02.8]}
30... Rxc2 {[%clk 0:01:37.8]} 31. Nd4 {[%clk 0:00:55.9]} 31... Ra2 {[%clk
0:01:28.5]} 32. Kf3 {[%clk 0:00:51.1]} 32... Nd3 {[%clk 0:01:23.7]} 33. h4
{[%clk 0:00:30.1]} 33... f5 {[%clk 0:01:07.6]} 34. h5 {[%clk 0:00:18.5]} 34...
Kf7 {[%clk 0:01:04.7]} 35. hxg6+ {[%clk 0:00:17.5]} 35... hxg6 {[%clk
0:01:04.6]} 36. g4 {[%clk 0:00:13.5]} 36... Ne5+ {[%clk 0:01:03.2]} 0-1

[Event "Live Chess"]
[Site "Chess.com"]
[Date "2023.05.21"]
[Round "-"]
[White "Greenbecker"]
[Black "GEMdzq"]
[Result "0-1"]
[WhiteElo "1684"]
[BlackElo "2261"]
[TimeControl "300"]
[EndTime "5:39:11 PDT"]
[Termination "GEMdzq won by checkmate"]

1. e4 {[%clk 0:04:57]} 1... d6 {[%clk 0:04:59.5]} 2. d4 {[%clk 0:04:55.2]} 2...
Nf6 {[%clk 0:04:59.4]} 3. Nc3 {[%clk 0:04:53.4]} 3... g6 {[%clk 0:04:59.3]} 4.
Nf3 {[%clk 0:04:52]} 4... Bg7 {[%clk 0:04:58.9]} 5. Bc4 {[%clk 0:04:50.1]} 5...
O-O {[%clk 0:04:57.3]} 6. O-O {[%clk 0:04:49.1]} 6... c6 {[%clk 0:04:54.4]} 7.
e5 {[%clk 0:04:46.5]} 7... Ne8 {[%clk 0:04:52.4]} 8. Bf4 {[%clk 0:04:37.3]} 8...
b5 {[%clk 0:04:49.7]} 9. Bd3 {[%clk 0:04:34.2]} 9... Na6 {[%clk 0:04:43.5]} 10.
Ne4 {[%clk 0:04:31.9]} 10... Nac7 {[%clk 0:04:37.9]} 11. exd6 {[%clk 0:04:18.4]}
11... Nxd6 {[%clk 0:04:36.2]} 12. Re1 {[%clk 0:04:11.3]} 12... Nd5 {[%clk
0:04:34.3]} 13. Be5 {[%clk 0:03:55.4]} 13... f6 {[%clk 0:04:19.7]} 14. Bg3
{[%clk 0:03:52.5]} 14... Bg4 {[%clk 0:04:10.5]} 15. h3 {[%clk 0:03:49.6]} 15...
Bh5 {[%clk 0:04:07.1]} 16. Nc5 {[%clk 0:03:39.7]} 16... Nc7 {[%clk 0:03:53.5]}
17. Qe2 {[%clk 0:03:31.6]} 17... Bxf3 {[%clk 0:03:44.3]} 18. Qxf3 {[%clk
0:03:27.4]} 18... Nd5 {[%clk 0:03:35.2]} 19. Ne6 {[%clk 0:03:22.9]} 19... Qd7
{[%clk 0:03:33.8]} 20. Nxf8 {[%clk 0:03:20.6]} 20... Rxf8 {[%clk 0:03:33.7]} 21.
a4 {[%clk 0:03:11.2]} 21... a6 {[%clk 0:03:31.4]} 22. axb5 {[%clk 0:03:09.5]}
22... axb5 {[%clk 0:03:31.3]} 23. Be4 {[%clk 0:03:03.1]} 23... Nxe4 {[%clk
0:03:03]} 24. Qxe4 {[%clk 0:02:59.4]} 24... f5 {[%clk 0:02:58.4]} 25. Qe6+
{[%clk 0:02:52.7]} 25... Qxe6 {[%clk 0:02:57.4]} 26. Rxe6 {[%clk 0:02:51.1]}
26... Bxd4 {[%clk 0:02:48.9]} 27. c3 {[%clk 0:02:39.5]} 27... Bf6 {[%clk
0:02:43.1]} 28. Rxc6 {[%clk 0:02:22.6]} 28... f4 {[%clk 0:02:41.5]} 29. Bh2
{[%clk 0:02:21.3]} 29... b4 {[%clk 0:02:39.9]} 30. Rd1 {[%clk 0:01:58.1]} 30...
bxc3 {[%clk 0:02:11.6]} 31. bxc3 {[%clk 0:01:45.5]} 31... Nxc3 {[%clk
0:02:09.9]} 32. Re1 {[%clk 0:01:24.9]} 32... g5 {[%clk 0:02:07.1]} 33. h4 {[%clk
0:01:21.4]} 33... h6 {[%clk 0:02:05.8]} 34. hxg5 {[%clk 0:01:20.3]} 34... hxg5
{[%clk 0:02:05.7]} 35. Kf1 {[%clk 0:01:13.7]} 35... Ra8 {[%clk 0:02:02.3]} 36.
Rc1 {[%clk 0:01:05]} 36... Ra3 {[%clk 0:01:55.3]} 37. f3 {[%clk 0:00:56.9]}
37... Kf7 {[%clk 0:01:52.6]} 38. Bg1 {[%clk 0:00:55.2]} 38... Nd5 {[%clk
0:01:45.3]} 39. R6c5 {[%clk 0:00:43.8]} 39... e6 {[%clk 0:01:35.7]} 40. Bf2
{[%clk 0:00:39.7]} 40... Ra2 {[%clk 0:01:32.2]} 41. R5c2 {[%clk 0:00:34.9]}
41... Ra3 {[%clk 0:01:30.9]} 42. Rc4 {[%clk 0:00:29.2]} 42... Kg6 {[%clk
0:01:29.3]} 43. Rc6 {[%clk 0:00:27.2]} 43... Kf5 {[%clk 0:01:27.9]} 44. Re1
{[%clk 0:00:24.7]} 44... e5 {[%clk 0:01:01.2]} 45. g4+ {[%clk 0:00:22.9]} 45...
fxg3 {[%clk 0:00:59.7]} 46. Bxg3 {[%clk 0:00:22.1]} 46... Rxf3+ {[%clk
0:00:57.2]} 47. Kg2 {[%clk 0:00:20.3]} 47... e4 {[%clk 0:00:56.4]} 48. Rc5
{[%clk 0:00:18.4]} 48... Rd3 {[%clk 0:00:50.5]} 49. Rf1+ {[%clk 0:00:16.4]}
49... Kg4 {[%clk 0:00:44.7]} 50. Rxd5 {[%clk 0:00:14.6]} 50... Rxd5 {[%clk
0:00:39.9]} 51. Rxf6 {[%clk 0:00:13.8]} 51... e3 {[%clk 0:00:38.1]} 52. Be1
{[%clk 0:00:11.9]} 52... Rd1 {[%clk 0:00:35.6]} 53. Rf1 {[%clk 0:00:10.2]} 53...
Ra1 {[%clk 0:00:31.9]} 54. Rg1 {[%clk 0:00:08.7]} 54... Ra2+ {[%clk 0:00:29.1]}
55. Kf1+ {[%clk 0:00:07.8]} 55... Kf4 {[%clk 0:00:22.7]} 56. Bg3+ {[%clk
0:00:06.9]} 56... Kf3 {[%clk 0:00:21.7]} 57. Be1 {[%clk 0:00:05.7]} 57... e2#
{[%clk 0:00:20.2]} 0-1

[Event "Live Chess"]
[Site "Chess.com"]
[Date "2023.05.21"]
[Round "-"]
[White "NotHarryV"]
[Black "mattihelenius2"]
[Result "1-0"]
[WhiteElo "1505"]
[BlackElo "491"]
[TimeControl "300"]
[EndTime "5:39:17 PDT"]
[Termination "NotHarryV won by resignation"]

1. d4 {[%clk 0:04:59.4]} 1... d5 {[%clk 0:04:53]} 2. c4 {[%clk 0:04:58.6]} 2...
c5 {[%clk 0:04:42.9]} 3. Nf3 {[%clk 0:04:56.6]} 3... dxc4 {[%clk 0:04:32.5]} 4.
e3 {[%clk 0:04:54.7]} 4... Bg4 {[%clk 0:04:26.5]} 5. Bxc4 {[%clk 0:04:49.9]}
5... cxd4 {[%clk 0:04:25.4]} 6. Qxd4 {[%clk 0:04:46.6]} 6... Qxd4 {[%clk
0:04:24.1]} 7. Nxd4 {[%clk 0:04:45.4]} 7... Nf6 {[%clk 0:04:23.7]} 8. Nc3 {[%clk
0:04:39.4]} 8... Nc6 {[%clk 0:04:23]} 9. Bb5 {[%clk 0:04:36.6]} 9... a6 {[%clk
0:04:21.1]} 10. Bxc6+ {[%clk 0:04:26.1]} 10... bxc6 {[%clk 0:04:19.6]} 11. Nxc6
{[%clk 0:04:23.8]} 11... Rc8 {[%clk 0:04:19]} 12. Ne5 {[%clk 0:04:17.1]} 12...
Bf5 {[%clk 0:04:09.3]} 13. O-O {[%clk 0:04:15.6]} 13... Rc5 {[%clk 0:04:06.8]}
14. Nf3 {[%clk 0:04:10.1]} 14... Ne4 {[%clk 0:04:00.2]} 15. Nxe4 {[%clk
0:04:00.1]} 15... Bxe4 {[%clk 0:04:00.1]} 16. Nd4 {[%clk 0:03:57.4]} 16... e5
{[%clk 0:03:54.6]} 17. Nb3 {[%clk 0:03:48.5]} 17... Rc8 {[%clk 0:03:52.1]} 18.
Bd2 {[%clk 0:03:39.9]} 18... Bc5 {[%clk 0:03:45.4]} 19. Bc3 {[%clk 0:03:37.3]}
19... O-O {[%clk 0:03:41.1]} 20. Nxc5 {[%clk 0:03:34.8]} 20... Rxc5 {[%clk
0:03:39.4]} 21. Bb4 {[%clk 0:03:34.4]} 21... Rcc8 {[%clk 0:03:37.5]} 22. Bxf8
{[%clk 0:03:33.2]} 22... Kxf8 {[%clk 0:03:35.9]} 23. Rac1 {[%clk 0:03:32]} 23...
g6 {[%clk 0:03:34.8]} 24. Rxc8+ {[%clk 0:03:29.7]} 1-0